bitfinex-derivatives/quotes_BTCF0:USTF0_20220102
["timestamp","ask_amount","ask_price","bid_price","bid_amount"]
[1641145281597,0.0895371,47604.0,47600.0,0.14033567]
[1641145281998,0.0895371,47604.0,47597.0,1.44584298]
[1641145282199,0.0895371,47604.0,47601.0,0.01193632]
[1641145282498,0.2775371,47604.0,47598.0,0.13130029]
[1641145282698,0.2775371,47604.0,47602.0,0.01193632]
[1641145282898,0.188,47604.0,47599.0,0.01193632]
[1641145283098,0.188,47604.0,47597.0,1.44584298]
[1641145283502,0.188,47604.0,47600.0,0.0119364]
[1641145283699,0.188,47604.0,47598.0,0.0119364]
[1641145283900,0.188,47604.0,47598.0,0.13130061]
[1641145284300,0.0895371,47603.0,47599.0,0.13130061]
[1641145284501,0.59632669,47600.0,47599.0,0.13130061]
[1641145284702,0.59632669,47600.0,47599.0,0.11936421]
[1641145285307,0.66872669,47600.0,47598.0,0.11936421]
[1641145285505,0.001,47599.0,47598.0,0.11936421]
[1641145285706,0.181,47599.0,47596.0,1.42483363]
[1641145286008,0.001,47597.0,47596.0,1.42483363]
[1641145286606,0.185,47599.0,47594.0,0.31359164]
[1641145286809,0.185,47599.0,47592.0,1.73842527]
[1641145287706,0.14033567,47601.0,47593.0,0.18]
[1641145288106,0.14033567,47601.0,47592.0,1.73842527]
[1641145288308,0.59608403,47597.0,47593.0,1.42483363]
[1641145289712,0.59608403,47596.0,47592.0,1.42483363]
[1641145290310,0.78508403,47596.0,47592.0,1.60483363]
[1641145290711,0.78508403,47596.0,47593.0,1.42483363]
[1641145291614,0.189,47596.0,47593.0,1.42483363]
[1641145292413,0.379,47596.0,47593.0,1.42483363]
[1641145293014,0.59608403,47595.0,47591.0,1.44584562]
[1641145294315,0.78508403,47595.0,47591.0,1.44584562]
[1641145295730,0.59608403,47595.0,47591.0,1.44584562]
[1641145296333,0.78508403,47595.0,47591.0,1.44584562]
[1641145297736,0.59608403,47595.0,47591.0,1.44584562]
[1641145298237,0.59608403,47600.0,47591.0,0.02101199]
[1641145298433,0.188,47595.0,47591.0,0.02101199]
[1641145299735,0.59608403,47600.0,47592.0,0.01193762]
[1641145300139,0.35737674,47599.0,47592.0,0.01193762]
[1641145301138,0.35737674,47598.0,47592.0,0.01193762]
[1641145301439,0.35737674,47598.0,47593.0,0.11937641]
[1641145302035,0.35737674,47598.0,47594.0,0.01193762]
[1641145302336,0.54437674,47598.0,47595.0,0.11937641]
[1641145302537,0.187,47598.0,47595.0,0.11937641]
[1641145302837,0.187,47598.0,47596.0,0.01193762]
[1641145303536,0.187,47598.0,47597.0,0.11937641]
[1641145303736,0.35737674,47600.0,47597.0,0.11937641]
[1641145304339,0.54337674,47600.0,47597.0,0.11937641]
[1641145304938,0.54337674,47600.0,47598.0,0.01193722]
[1641145305238,0.54337674,47600.0,47592.0,0.11937641]
[1641145305439,0.54337674,47600.0,47599.0,0.11937641]
[1641145305641,0.186,47600.0,47599.0,0.11937641]
[1641145305841,0.49771241,47601.0,47593.0,0.11937641]
[1641145306240,0.49771241,47601.0,47592.0,0.11937641]
[1641145306440,0.68371241,47601.0,47594.0,0.13131377]
[1641145306640,0.68371241,47601.0,47594.0,0.11937641]
[1641145306844,0.68371241,47601.0,47593.0,0.13131377]
[1641145307042,0.86371241,47601.0,47595.0,0.13131377]
[1641145307243,0.18,47598.0,47595.0,0.11937641]
[1641145307645,0.18,47598.0,47596.0,0.01193736]
[1641145307844,0.18,47600.0,47596.0,0.13131377]
[1641145308044,0.18,47600.0,47596.0,0.01193736]
[1641145308244,0.49771241,47601.0,47596.0,0.01193736]
[1641145308445,0.186,47600.0,47597.0,0.11937641]
[1641145308645,0.18,47599.0,47597.0,0.11937641]
[1641145309044,0.54337674,47600.0,47592.0,0.11937641]
[1641145309448,0.54337674,47600.0,47598.0,0.11937641]
[1641145309747,0.35737674,47600.0,47593.0,0.13131428]
[1641145310146,0.35737674,47600.0,47594.0,0.11937641]
[1641145310349,0.35737674,47600.0,47594.0,0.13131422]
[1641145310547,0.54337674,47600.0,47595.0,0.01193781]
[1641145310948,0.54337674,47600.0,47596.0,0.11937641]
[1641145311747,0.35737674,47600.0,47596.0,0.11937641]
[1641145311951,0.35737674,47600.0,47590.0,0.11937641]
[1641145312148,0.35737674,47600.0,47597.0,0.11937641]
[1641145312349,0.35737674,47600.0,47591.0,0.11937641]
[1641145312549,0.54337674,47600.0,47598.0,0.11937641]
[1641145313152,0.54337674,47600.0,47592.0,0.11937641]
[1641145313351,0.54337674,47600.0,47589.0,0.15012967]
[1641145313551,0.54337674,47600.0,47593.0,0.1193774]
[1641145313851,0.35737674,47600.0,47590.0,0.13131512]
[1641145314051,0.35737674,47600.0,47594.0,0.13131512]
[1641145314251,0.35737674,47600.0,47594.0,0.1193774]
[1641145314454,0.54337674,47600.0,47595.0,0.13131512]
[1641145314854,0.54337674,47600.0,47596.0,0.1193774]
[1641145315054,0.54337674,47600.0,47596.0,0.13131512]
[1641145315256,0.54337674,47600.0,47597.0,0.01193772]
[1641145315456,0.54337674,47600.0,47597.0,0.13131512]
[1641145315756,0.35737674,47600.0,47598.0,0.1193774]
[1641145315956,0.35737674,47600.0,47598.0,0.4771494]
[1641145316356,0.35737674,47600.0,47598.0,0.357772]
[1641145316556,0.54437674,47600.0,47598.0,0.357772]
[1641145316757,0.54437674,47600.0,47597.0,0.357772]
[1641145317659,0.08955023,47599.0,47592.0,0.02101183]
[1641145318059,0.08955023,47599.0,47593.0,0.13131742]
[1641145318457,0.27655023,47599.0,47593.0,0.13131742]
[1641145318859,0.59279699,47595.0,47594.0,0.01193795]
[1641145319059,0.59279699,47595.0,47594.0,0.13131742]
[1641145320562,0.78179699,47595.0,47594.0,0.13131742]
[1641145321563,0.189,47595.0,47594.0,0.13131742]
[1641145321861,0.59279699,47597.0,47594.0,0.13131742]
[1641145322463,0.78379699,47597.0,47594.0,0.13131742]
[1641145322762,0.191,47597.0,47595.0,0.13131742]
[1641145323162,0.191,47597.0,47596.0,0.11937947]
[1641145323564,0.191,47597.0,47596.0,0.13131742]
[1641145323762,0.59279699,47599.0,47596.0,0.13131742]
[1641145324263,0.59279699,47599.0,47597.0,0.11937947]
[1641145324462,0.77979699,47599.0,47597.0,0.11937947]
[1641145324962,0.77979699,47599.0,47593.0,0.11937947]
[1641145325463,0.77979699,47599.0,47594.0,0.0119375]
[1641145325663,0.14033567,47601.0,47594.0,0.0119375]
[1641145325664,0.59279699,47598.0,47594.0,0.0119375]
[1641145325862,0.59279699,47598.0,47595.0,0.11937947]
[1641145326364,0.59279699,47598.0,47596.0,0.0119375]
[1641145326564,0.78179699,47598.0,47596.0,0.0119375]
[1641145326765,0.59279699,47597.0,47596.0,0.0119375]
[1641145326964,0.59279699,47597.0,47593.0,0.0119375]
[1641145328364,0.59279699,47598.0,47593.0,0.0119375]
[1641145328565,0.189,47597.0,47593.0,0.0119375]
[1641145330468,0.373,47597.0,47593.0,0.0119375]
[1641145331770,0.59279699,47600.0,47593.0,0.0119375]
[1641145332272,0.59279699,47600.0,47593.0,1.43677113]
[1641145332468,0.78179699,47600.0,47593.0,1.43677113]
[1641145332869,0.78179699,47600.0,47597.0,0.02100937]
[1641145333469,0.78179699,47600.0,47599.0,0.14033567]
[1641145333872,0.59279699,47600.0,47599.0,0.15227317]
[1641145334273,0.35573309,47602.0,47599.0,0.15227317]
[1641145334471,0.172,47600.0,47599.0,0.15227317]
[1641145334671,0.172,47600.0,47599.0,0.14033567]
[1641145335972,0.35573309,47602.0,47599.0,0.14033567]
[1641145336471,0.53973309,47602.0,47599.0,0.14033567]
[1641145339772,0.35573309,47602.0,47599.0,0.14033567]
[1641145340475,0.53773309,47602.0,47599.0,0.14033567]
[1641145341576,0.35573309,47601.0,47599.0,0.14033567]
[1641145341876,0.35573309,47601.0,47600.0,0.11936288]
[1641145342578,0.53673309,47601.0,47600.0,0.11936288]
[1641145343276,0.181,47601.0,47600.0,0.11936288]
[1641145343877,0.59279699,47601.0,47600.0,0.11936288]
[1641145344478,0.77379699,47601.0,47600.0,0.11936288]
[1641145345279,0.181,47601.0,47600.0,0.11936288]
[1641145345883,0.59279699,47602.0,47600.0,0.11936288]
[1641145346580,0.77679699,47602.0,47600.0,0.11936288]
[1641145347782,0.59279699,47601.0,47600.0,0.11936288]
[1641145348482,0.77479699,47601.0,47600.0,0.11936288]
[1641145349083,0.182,47601.0,47600.0,0.11936288]
[1641145349785,0.182,47601.0,47600.0,0.13129909]
[1641145350187,0.35513797,47603.0,47600.0,0.13129909]
[1641145350484,0.182,47601.0,47600.0,0.13129909]
[1641145350683,0.182,47601.0,47600.0,0.11936288]
[1641145351898,0.35513797,47603.0,47600.0,0.11936288]
[1641145352501,0.53713797,47603.0,47600.0,0.11936288]
[1641145353402,0.182,47603.0,47600.0,0.11936288]
[1641145353904,0.35513797,47604.0,47600.0,0.11936288]
[1641145354505,0.54013797,47604.0,47600.0,0.11936288]
[1641145355907,0.35513797,47603.0,47600.0,0.11936288]
[1641145356506,0.53913797,47603.0,47600.0,0.11936288]
[1641145356907,0.184,47603.0,47600.0,0.11936288]
[1641145357907,0.35513797,47604.0,47600.0,0.11936288]
[1641145358608,0.54113797,47604.0,47600.0,0.11936288]
[1641145359910,0.35513797,47604.0,47600.0,0.11936288]
[1641145360512,0.54113797,47604.0,47600.0,0.11936288]
[1641145362012,0.35513797,47604.0,47600.0,0.11936288]
[1641145362612,0.35513797,47603.0,47600.0,0.11936288]
[1641145364514,0.54413797,47603.0,47600.0,0.11936288]
[1641145365716,0.54413797,47603.0,47600.0,0.11975067]
[1641145365914,0.35513797,47603.0,47600.0,0.11975067]
[1641145366122,0.35513797,47602.0,47601.0,0.13129899]
[1641145366515,0.54613797,47602.0,47601.0,0.13129899]
[1641145366915,0.191,47602.0,47601.0,0.13129899]
[1641145367416,0.191,47602.0,47601.0,0.01193611]
[1641145367716,0.191,47602.0,47601.0,0.13129583]
[1641145367917,0.08953763,47602.0,47601.0,0.13129583]
[1641145368519,0.186,47602.0,47601.0,0.13129583]
[1641145369821,0.27553763,47602.0,47601.0,0.13129583]
[1641145370022,0.08953763,47602.0,47601.0,0.13129583]
[1641145370522,0.27753763,47602.0,47601.0,0.13129583]
[1641145370722,0.188,47602.0,47601.0,0.13129583]
[1641145371926,0.08953763,47605.0,47601.0,0.13129583]
[1641145372124,0.08953763,47602.0,47601.0,0.13129583]
[1641145372625,0.28053763,47602.0,47600.0,0.00038779]
[1641145372825,0.191,47602.0,47600.0,0.00038779]
[1641145373829,0.5930675,47601.0,47600.0,0.00038779]
[1641145374726,0.7800675,47601.0,47600.0,0.00038779]
[1641145376027,0.08953989,47601.0,47600.0,0.00038779]
[1641145376729,0.27753989,47601.0,47600.0,0.00038779]
[1641145377127,0.188,47601.0,47600.0,0.00038779]
[1641145378029,0.08953989,47601.0,47600.0,0.00038779]
[1641145378630,0.27753989,47601.0,47600.0,0.00038779]
[1641145379232,0.188,47601.0,47600.0,0.00038779]
[1641145379931,0.08953989,47605.0,47600.0,0.00038779]
[1641145380132,0.08953989,47601.0,47600.0,0.00038779]
[1641145380633,0.27753989,47601.0,47600.0,0.00038779]
[1641145381537,0.27753989,47601.0,47596.0,0.02101]
[1641145381737,0.18,47600.0,47596.0,1.44584363]
[1641145381934,0.18,47597.0,47596.0,1.42483363]
[1641145382535,0.181,47597.0,47596.0,1.42483363]
[1641145382735,0.366,47597.0,47596.0,1.42483363]
[1641145383634,0.365,47597.0,47596.0,1.42483363]
[1641145384034,0.26953989,47597.0,47592.0,1.42483363]
[1641145384236,0.18,47594.0,47592.0,1.42483363]
[1641145384650,0.001,47593.0,47592.0,1.42483363]
[1641145385750,0.09006,47593.0,47592.0,1.42483363]
[1641145385951,0.68228276,47593.0,47588.0,1.42483363]
[1641145386151,0.00021018,47589.0,47588.0,1.42483363]
[1641145386753,0.18921018,47589.0,47588.0,1.42483363]
[1641145386951,0.18921018,47589.0,47586.0,0.14033567]
[1641145387153,0.189,47589.0,47586.0,0.14033567]
[1641145387353,0.18,47587.0,47586.0,0.14033567]
[1641145387552,0.18,47587.0,47584.0,1.42483363]
[1641145388253,0.14033567,47586.0,47584.0,1.42483363]
[1641145388454,0.14033567,47586.0,47583.0,1.42483363]
[1641145388654,0.18,47584.0,47583.0,1.42483363]
[1641145389754,0.53442185,47584.0,47582.0,0.31359164]
[1641145389955,0.53442185,47584.0,47581.0,1.42483363]
[1641145390555,0.35442185,47584.0,47581.0,1.42483363]
[1641145390757,0.54242185,47584.0,47580.0,1.42483363]
[1641145392057,0.35442185,47584.0,47580.0,1.42483363]
[1641145392659,0.54142185,47584.0,47580.0,1.42483363]
[1641145393660,0.54142185,47584.0,47581.0,0.03081054]
[1641145393860,0.54142185,47584.0,47583.0,0.18]
[1641145394060,0.59222276,47585.0,47583.0,0.20101458]
[1641145394259,0.59222276,47585.0,47583.0,0.18]
[1641145394462,0.59222276,47585.0,47584.0,0.0210122]
[1641145394660,0.77722276,47585.0,47584.0,0.0210122]
[1641145395960,0.185,47585.0,47584.0,0.0210122]
[1641145396160,0.59222276,47590.0,47584.0,0.0210122]
[1641145396759,0.77722276,47590.0,47584.0,0.0210122]
[1641145398165,0.59222276,47590.0,47585.0,1.43289422]
[1641145398668,0.77622276,47590.0,47585.0,1.43289422]
[1641145400068,0.59222276,47589.0,47585.0,1.43289422]
[1641145400670,0.77722276,47589.0,47585.0,1.43289422]
[1641145401469,0.185,47589.0,47585.0,1.43289422]
[1641145402071,0.59222276,47590.0,47585.0,1.43289422]
[1641145402275,0.59222276,47590.0,47585.0,1.51100422]
[1641145402672,0.77722276,47590.0,47585.0,1.51100422]
[1641145403072,0.77722276,47590.0,47586.0,0.01193905]
[1641145404275,0.59222276,47589.0,47586.0,0.01193905]
[1641145405778,0.59222276,47588.0,47585.0,0.01193905]
[1641145406183,0.59222276,47588.0,47587.0,0.01193905]
[1641145406377,0.73255843,47588.0,47587.0,0.07321]
[1641145406577,0.73255843,47588.0,47587.0,0.08514905]
[1641145406777,0.91655843,47588.0,47587.0,0.08514905]
[1641145407179,0.77622276,47588.0,47587.0,0.08514905]
[1641145408080,0.59222276,47588.0,47587.0,0.08514905]
[1641145408680,0.91655843,47588.0,47587.0,0.08514905]
[1641145410082,0.73255843,47588.0,47587.0,0.08514905]
[1641145410685,0.91655843,47588.0,47587.0,0.08514905]
[1641145412099,0.73255843,47588.0,47587.0,0.08514905]
[1641145412701,0.91955843,47588.0,47587.0,0.08514905]
[1641145413201,0.32733567,47588.0,47587.0,0.08514905]
[1641145414101,0.14033567,47588.0,47587.0,0.08514905]
[1641145414601,0.49326984,47588.0,47587.0,0.08514905]
[1641145414800,0.67726984,47588.0,47587.0,0.08514905]
[1641145415401,0.32433567,47588.0,47587.0,0.08514905]
[1641145416002,0.14033567,47588.0,47587.0,0.08514905]
[1641145416802,0.32333567,47588.0,47587.0,0.08514905]
[1641145417303,0.91555843,47588.0,47587.0,0.08514905]
[1641145418206,0.73255843,47588.0,47587.0,0.08514905]
[1641145418605,0.49306646,47588.0,47587.0,0.08514905]
[1641145418804,0.67806646,47588.0,47587.0,0.08514905]
[1641145419404,0.32533567,47588.0,47587.0,0.08514905]
[1641145420108,0.14033567,47588.0,47587.0,0.08514905]
[1641145420807,0.32533567,47588.0,47587.0,0.08514905]
[1641145421206,0.91755843,47588.0,47587.0,0.08514905]
[1641145422109,0.73255843,47588.0,47587.0,0.08514905]
[1641145422712,0.91655843,47588.0,47587.0,0.08514905]
[1641145423611,0.91655843,47588.0,47587.0,0.01193905]
[1641145424111,0.73255843,47588.0,47587.0,0.01193905]
[1641145424310,0.73255843,47588.0,47585.0,0.01193905]
[1641145424711,0.73255843,47588.0,47587.0,0.01193905]
[1641145424712,0.91755843,47588.0,47587.0,0.01193905]
[1641145424913,0.91755843,47588.0,47586.0,0.01193905]
[1641145425114,0.59222276,47587.0,47586.0,0.01193905]
[1641145425415,0.59222276,47587.0,47583.0,1.43289422]
[1641145426917,0.77722276,47587.0,47583.0,1.43289422]
[1641145427216,0.59222276,47586.0,47582.0,1.43289422]
[1641145428820,0.77622276,47586.0,47582.0,1.43289422]
[1641145430219,0.59222276,47586.0,47580.0,1.44268822]
[1641145430425,0.59222276,47585.0,47580.0,1.44268822]
[1641145430720,0.59222276,47585.0,47581.0,0.119402]
[1641145432024,0.95622276,47586.0,47582.0,1.43289422]
[1641145432224,0.77222276,47586.0,47582.0,1.43289422]
[1641145432826,0.95622276,47586.0,47580.0,1.44268822]
[1641145433028,0.18,47582.0,47580.0,1.43289422]
[1641145433929,0.001,47581.0,47580.0,1.43289422]
[1641145434730,0.001,47581.0,47579.0,1.46479422]
[1641145435029,0.14133567,47580.0,47579.0,1.46479422]
[1641145435930,0.14133567,47580.0,47579.0,1.58420523]
[1641145436629,0.14133567,47580.0,47579.0,1.46479422]
[1641145436830,0.32733567,47580.0,47579.0,1.46479422]
[1641145437030,0.32733567,47580.0,47579.0,0.0319]
[1641145437631,0.32733567,47580.0,47579.0,0.151311]
[1641145438031,0.32733567,47580.0,47579.0,0.0319]
[1641145438233,0.14133567,47580.0,47579.0,0.0319]
[1641145438631,0.19978567,47580.0,47579.0,0.0319]
[1641145438832,0.97600843,47580.0,47576.0,1.45289422]
[1641145439032,0.001,47577.0,47576.0,1.45289422]
[1641145439331,0.14133567,47577.0,47576.0,1.45289422]
[1641145439531,0.32133567,47577.0,47576.0,1.45289422]
[1641145440434,0.32133567,47577.0,47576.0,0.02]
[1641145440837,0.50633567,47577.0,47576.0,0.02]
[1641145441435,0.5959217,47577.0,47576.0,0.02]
[1641145442241,0.2309217,47577.0,47576.0,0.02]
[1641145442438,0.4109217,47577.0,47576.0,0.02]
[1641145442837,0.5949217,47577.0,47576.0,0.02]
[1641145444339,0.2309217,47577.0,47576.0,0.02]
[1641145444551,0.2299217,47577.0,47576.0,0.02]
[1641145444751,0.2299217,47577.0,47576.0,0.03194123]
[1641145444951,0.4169217,47577.0,47576.0,0.33135323]
[1641145445969,0.32733567,47577.0,47576.0,0.33135323]
[1641145446365,0.14033567,47577.0,47576.0,0.15135323]
[1641145446969,0.32633567,47577.0,47576.0,0.15135323]
[1641145447169,0.32633567,47577.0,47576.0,0.33135323]
[1641145447366,0.32633567,47577.0,47576.0,0.15135323]
[1641145448166,0.14033567,47577.0,47576.0,0.15135323]
[1641145448469,0.35414914,47580.0,47576.0,0.33135323]
[1641145448966,0.185,47577.0,47576.0,0.33135323]
[1641145449167,0.185,47577.0,47576.0,0.02]
[1641145449368,0.185,47577.0,47576.0,0.2]
[1641145450370,0.14033567,47578.0,47576.0,0.2]
[1641145450574,0.14033567,47578.0,47577.0,0.18]
[1641145450771,0.14033567,47578.0,47576.0,0.04101806]
[1641145450975,0.32333567,47578.0,47576.0,0.04101806]
[1641145451371,0.32333567,47578.0,47576.0,0.22101806]
[1641145452173,0.14033567,47578.0,47576.0,0.22101806]
[1641145452374,0.14033567,47578.0,47576.0,0.2]
[1641145452975,0.32633567,47578.0,47576.0,0.2]
[1641145453478,0.32633567,47578.0,47577.0,0.0210167]
[1641145454077,0.14033567,47578.0,47577.0,0.0210167]
[1641145454375,0.14033567,47578.0,47576.0,0.2]
[1641145454875,0.32733567,47578.0,47577.0,0.02101654]
[1641145455477,0.32733567,47578.0,47576.0,0.2]
[1641145455677,0.32733567,47578.0,47577.0,0.02101654]
[1641145456376,0.32733567,47578.0,47576.0,0.2]
[1641145456577,0.32733567,47578.0,47577.0,0.02101654]
[1641145456777,0.14033567,47578.0,47576.0,0.2]
[1641145456977,0.32933567,47578.0,47576.0,0.2]
[1641145457280,0.35414914,47582.0,47576.0,0.2]
[1641145457478,0.35414914,47582.0,47581.0,0.2010153]
[1641145457692,0.59024856,47583.0,47581.0,0.34135097]
[1641145457982,0.59024856,47584.0,47581.0,0.32033567]
[1641145458981,0.59024856,47584.0,47581.0,0.51633567]
[1641145459183,0.14033567,47593.0,47583.0,0.02101145]
[1641145459382,0.58839477,47589.0,47588.0,0.18]
[1641145459982,0.14033567,47593.0,47588.0,0.18]
[1641145460183,0.14033567,47593.0,47588.0,0.49359164]
[1641145460484,0.14033567,47593.0,47592.0,0.20101108]
[1641145460683,0.14033567,47593.0,47592.0,0.02101108]
[1641145461086,0.14033567,47593.0,47592.0,0.20101108]
[1641145461583,1.31313965,47600.0,47592.0,0.02101108]
[1641145461784,1.31313965,47600.0,47592.0,0.20101108]
[1641145462184,1.31313965,47600.0,47593.0,0.009794]
[1641145462384,1.31313965,47600.0,47594.0,0.02101054]
[1641145462984,1.49313965,47600.0,47594.0,0.20101054]
[1641145463787,1.49313965,47600.0,47595.0,0.18]
[1641145463986,0.08954617,47599.0,47595.0,0.18]
[1641145464485,0.08954617,47599.0,47598.0,0.02100891]
[1641145464685,0.08954617,47599.0,47598.0,0.03080291]
[1641145465589,0.08954617,47601.0,47598.0,0.17113858]
[1641145466990,0.179,47601.0,47598.0,0.35513858]
[1641145467791,0.08954617,47600.0,47598.0,0.35513858]
[1641145468190,0.08954617,47600.0,47598.0,0.17113858]
[1641145468995,0.08954617,47600.0,47598.0,0.35713858]
[1641145469294,1.40268582,47604.0,47598.0,0.35713858]
[1641145470296,1.40268582,47604.0,47598.0,0.17113858]
[1641145470694,0.08954617,47603.0,47602.0,0.83572026]
[1641145470913,0.09054617,47603.0,47602.0,0.83572026]
[1641145473015,0.26854617,47603.0,47602.0,1.01772026]
[1641145474217,0.09054617,47603.0,47602.0,0.83572026]
[1641145475018,0.27054617,47603.0,47602.0,1.01572026]
[1641145476320,0.09054617,47603.0,47602.0,0.83572026]
[1641145476922,0.27354617,47603.0,47602.0,1.01472026]
[1641145477823,0.184,47603.0,47602.0,1.01472026]
[1641145478224,0.001,47603.0,47598.0,0.16134458]
[1641145478424,0.18,47608.0,47598.0,0.16134458]
[1641145479027,0.14033567,47609.0,47598.0,0.34034458]
[1641145479028,0.183,47603.0,47598.0,0.34034458]
[1641145480225,0.14033567,47609.0,47598.0,0.16134458]
[1641145481025,0.32733567,47609.0,47598.0,0.22434458]
[1641145482226,0.14033567,47609.0,47598.0,0.16134458]
[1641145482425,0.14033567,47609.0,47599.0,0.009794]
[1641145483026,0.33233567,47609.0,47599.0,0.009794]
[1641145483826,0.33233567,47609.0,47602.0,0.02100727]
[1641145484027,0.001,47604.0,47602.0,0.02100727]
[1641145484229,0.001,47603.0,47602.0,0.02100727]
[1641145485129,0.179,47603.0,47602.0,0.182]
[1641145486230,0.001,47603.0,47599.0,0.009794]
[1641145486431,0.06779,47608.0,47599.0,0.009794]
[1641145486932,0.25579,47608.0,47599.0,0.153794]
[1641145487130,0.18,47607.0,47599.0,0.153794]
[1641145487630,0.368,47608.0,47599.0,0.153794]
[1641145488031,0.188,47608.0,47599.0,0.153794]
[1641145488231,0.14033567,47609.0,47599.0,0.009794]
[1641145488631,1.43251598,47606.0,47599.0,0.009794]
[1641145488832,1.52205746,47606.0,47604.0,0.35697201]
[1641145489132,0.001,47605.0,47604.0,0.35697201]
[1641145490134,0.09054148,47605.0,47604.0,0.35697201]
[1641145490937,0.27454148,47605.0,47604.0,0.53097201]
[1641145492237,0.27454148,47605.0,47604.0,0.35697201]
[1641145492436,0.09054148,47605.0,47604.0,0.35697201]
[1641145492937,0.27554148,47605.0,47604.0,0.52997201]
[1641145494439,0.09054148,47605.0,47604.0,0.35697201]
[1641145494940,0.27554148,47605.0,47604.0,0.52997201]
[1641145495239,0.27554148,47605.0,47604.0,0.173]
[1641145496343,0.09054148,47605.0,47603.0,0.35697201]
[1641145496542,0.001,47604.0,47603.0,0.35697201]
[1641145497061,0.001,47604.0,47603.0,0.51897201]
[1641145497762,1.52305746,47604.0,47603.0,0.162]
[1641145497961,1.66339313,47604.0,47603.0,0.162]
[1641145498261,1.66339313,47604.0,47601.0,0.35697201]
[1641145498464,0.181,47602.0,47601.0,0.35697201]
[1641145498662,0.181,47602.0,47600.0,0.35697201]
[1641145498863,0.18,47602.0,47600.0,0.35697201]
[1641145499063,0.368,47602.0,47601.0,0.159]
[1641145499262,0.369,47602.0,47601.0,0.159]
[1641145500365,0.181,47602.0,47600.0,0.35697201]
[1641145500565,0.18,47602.0,47600.0,0.35697201]
[1641145500964,0.37,47602.0,47600.0,0.35697201]
[1641145501166,1.78646939,47602.0,47599.0,0.35697201]
[1641145501765,1.60646939,47602.0,47599.0,0.35697201]
[1641145502264,1.41646939,47602.0,47599.0,0.35697201]
[1641145502766,0.18,47601.0,47599.0,0.35697201]
[1641145503066,0.18,47601.0,47600.0,0.59495335]
[1641145503966,0.18,47601.0,47599.0,0.59495335]
[1641145504975,0.373,47601.0,47599.0,0.59495335]
[1641145505672,0.193,47601.0,47598.0,0.59495335]
[1641145506072,0.14033567,47599.0,47598.0,0.59495335]
[1641145506674,0.32033567,47599.0,47598.0,0.83572026]
[1641145507173,0.50433567,47599.0,47598.0,0.97472026]
[1641145507475,0.32433567,47599.0,47598.0,0.97472026]
[1641145507677,0.50433567,47599.0,47598.0,0.97472026]
[1641145508275,0.32033567,47599.0,47598.0,0.83572026]
[1641145508474,0.14033567,47599.0,47598.0,0.83572026]
[1641145508675,0.32033567,47599.0,47598.0,0.83572026]
[1641145508873,0.14033567,47599.0,47598.0,0.83572026]
[1641145509076,0.32533567,47599.0,47598.0,0.97372026]
[1641145510475,0.14033567,47599.0,47598.0,0.83572026]
[1641145510675,0.14033567,47599.0,47592.0,0.009794]
[1641145511076,0.31133567,47599.0,47598.0,0.181]
[1641145512376,0.14033567,47599.0,47592.0,0.009794]
[1641145512979,0.31133567,47599.0,47593.0,0.32033567]
[1641145513177,0.31133567,47599.0,47597.0,0.83543285]
[1641145514077,0.31133567,47599.0,47596.0,0.83543285]
[1641145514280,0.14033567,47599.0,47596.0,0.83543285]
[1641145515081,0.31733567,47599.0,47596.0,1.01643285]
[1641145515582,0.31733567,47599.0,47597.0,0.83543285]
[1641145516179,0.177,47599.0,47597.0,0.83543285]
[1641145516379,1.29481604,47603.0,47596.0,0.08328]
[1641145516581,0.35306765,47597.0,47596.0,0.08328]
[1641145516979,0.35306765,47597.0,47596.0,0.26921736]
[1641145517882,0.35306765,47597.0,47596.0,0.25728]
[1641145518085,0.35306765,47597.0,47596.0,0.27828953]
[1641145518379,0.35306765,47597.0,47596.0,0.10428953]
[1641145518582,0.35306765,47597.0,47596.0,0.11622686]
[1641145518782,0.35306765,47597.0,47596.0,0.29622686]
[1641145518982,0.35306765,47597.0,47596.0,0.60660069]
[1641145519182,0.35306765,47597.0,47596.0,0.42660069]
[1641145519882,0.35306765,47597.0,47596.0,0.30722686]
[1641145520283,0.35306765,47597.0,47596.0,0.23560185]
[1641145521086,0.35306765,47597.0,47596.0,0.42860185]
[1641145522486,0.58844608,47599.0,47596.0,0.23560185]
[1641145522688,0.58844608,47597.0,47596.0,0.23560185]
[1641145522986,0.58844608,47597.0,47596.0,0.42760185]
[1641145523688,0.3532529,47597.0,47596.0,0.30822686]
[1641145523987,0.3532529,47597.0,47596.0,0.29628953]
[1641145524190,0.3532529,47597.0,47596.0,0.30822693]
[1641145524388,0.3532529,47597.0,47596.0,0.23559999]
[1641145524591,0.58844608,47598.0,47596.0,0.23559999]
[1641145524789,0.58844608,47597.0,47596.0,0.23559999]
[1641145524991,0.58844608,47597.0,47596.0,0.41666259]
[1641145525591,0.58844608,47598.0,47596.0,0.41666259]
[1641145526092,0.58844608,47598.0,47596.0,0.29728953]
[1641145526291,0.58844608,47598.0,47596.0,0.10428953]
[1641145526491,0.58844608,47598.0,47596.0,0.02100953]
[1641145526990,0.58844608,47598.0,47596.0,0.21400953]
[1641145527192,0.58844608,47597.0,47596.0,0.21400953]
[1641145527591,0.58844608,47597.0,47596.0,0.33338218]
[1641145527792,0.58844608,47598.0,47596.0,0.33338218]
[1641145528193,0.58844608,47598.0,47596.0,0.21400953]
[1641145528393,0.58844608,47598.0,47596.0,0.02100953]
[1641145528996,0.58844608,47598.0,47597.0,0.18]
[1641145529194,0.58844608,47598.0,47597.0,0.29937099]
[1641145529996,0.58844608,47599.0,47597.0,0.29937099]
[1641145530397,0.58844608,47599.0,47598.0,0.11937099]
[1641145530596,0.58844608,47599.0,47597.0,0.18]
[1641145531016,0.58844608,47599.0,47598.0,0.11937052]
[1641145531512,0.58844608,47599.0,47597.0,0.194]
[1641145531712,0.67654608,47599.0,47597.0,0.194]
[1641145531913,0.0881,47599.0,47597.0,0.194]
[1641145532414,0.0881,47599.0,47596.0,0.02100953]
[1641145533016,0.08953903,47598.0,47596.0,0.20200953]
[1641145534013,0.08953903,47598.0,47596.0,0.181]
[1641145534414,0.08953903,47598.0,47593.0,0.14033567]
[1641145535114,0.26753903,47598.0,47593.0,0.32033567]
[1641145535924,0.58892517,47595.0,47593.0,0.32033567]
[1641145536518,0.58892517,47595.0,47593.0,0.14033567]
[1641145536919,0.58892517,47595.0,47594.0,0.11937932]
[1641145537220,0.58892517,47595.0,47593.0,0.33033567]
[1641145537418,0.58892517,47595.0,47594.0,0.20101019]
[1641145537618,0.58892517,47595.0,47594.0,0.14038811]
[1641145538221,0.58892517,47596.0,47594.0,0.02101019]
[1641145539122,0.58892517,47595.0,47594.0,0.21101019]
[1641145540124,0.58892517,47595.0,47594.0,0.22294818]